Workbook

Sheet Home
B1: Midwest Hazelnut Enterprise Budget Worksheet Tool - BETA
B2: Original Verstion: June 8, 2012, Last Updated: December 15, 2016
B4: This spreadsheet tool helps you build an enterprise budget for your hazelnut enterprise one step at a time. Starting with Step 1, complete each Step in order by filling in the yellow boxes. The completed enterprise budget can be seen in the budget tab.
B8: Establishment Phase | F8: Pre-Production Phase | J8: Early-Production Phase
B9: Years 0-1 | F9: Years 2-4 | J9: Years 5-8
N11: Developed By:
N12: Jason Fischbach, Agriculture Agent
N13: Ashland and Bayfield County UW-Extension
N14: jason.fischbach@ces.uwex.edu
Q17: Helpful Tools
Q19: Iowa Custom Rate Guide
Q20: Machinery Cost Calculator
B21: Renovation | F21: Full-Production Phase | J21: Harvest Data
B22: Year 8 | F22: Years 9-15

Sheet Steps 1-5
B2: Step 1 | F2: Step 3
B3: Determine Your Planting Arrangement | F3: Determine Your Plant Costs
B4: Enter your row spacing, plant spacing, row length, and number of rows. You must assume each row is the same length. | F4: Enter the plant type and source and the cost per plant.
F5: Plant Type and Source | G5: Cost/Plant | H5: # of Plants | I5: Total Cost
F6: hazelnuts | G6: $3.50 | H6: =C15 -> 730 | I6: =H6*G6 -> $2,553.60
I7: =H7*G7 -> 0
B8: Item | C8: Value
B9: Row Spacing (ft) | C9: 12 | F9: Step 4a
B10: Plant Spacing (ft) | C10: 5 | F10: Determine Your Tree Tube Costs (if used)
B11: Number of Rows | C11: 19 | F11: Tree tubes are used to protect plants from herbivory and wind in the first two years. They can also act as an herbicide shield to allow use of glyphosate (Round-Up) in the establishment years.
B12: Row Length (ft) | C12: 192
B13: Total Row Feet | C13: =C12*C11 -> 3648
B14: Total Planting Acres | C14: =(C11*C12*C9)/43560 -> 1.00
B15: Total Plants | C15: =C13/C10 -> 730 | F15: Tree Tube Protector | G15: Cost/Tube | H15: Total Cost
B16: Plants/acre | C16: =C15/C14 -> 726 | H16: =G16*C15 -> 0
B18: Step 2 | F18: Step 5
B19: Determine Your Land Costs | F19: Determine Your Drip Irrigation Costs (If used)
B20: Enter your annual land ownership costs on a per acre basis OR if you are renting land, enter your annual cash rent payment. | F20: Some form of irrigation is essential in the establishment year. This chart assumes use of drip irrigation arranged with 1/2" poly feeder lines and a 3/4" mainline attached to the water source. If watering by hand from a tank leave this step blank.
B23: Item | C23: Cost/Yr | D23: Unit
B24: Property taxes | D24: ac
B25: Mortgage (principal and interest) | D25: ac | F25: Item | G25: # | H25: unit cost | I25: Total Cost
B26: Insurance | D26: ac | F26: 1/2 feeder tubing | G26: =C13 -> 3648 | H26: $0.09 | I26: =G26*H26 -> $342.91
B27: or | F27: 3/4 mainline | G27: =(C11*C9)+50 -> 278 | H27: $0.18 | I27: $50.04
B28: Cash rent | C28: $100.00 | D28: ac | F28: emitters (2/plant) | G28: =C15*2 -> 1459 | H28: $0.25 | I28: $364.80
F29: end caps | G29: =C11+1 -> 20 | H29: $1.59 | I29: $31.80
F30: T connectors | G30: =C11 -> 19 | H30: $2.59 | I30: $49.21
F31: Head assembly and zone valves | G31: 1 | H31: $55.00 | I31: $55.00
F32: Total Drip System | I32: =SUM(I26:I31) -> $893.76

Sheet Step 6-7
B2: Step 6 (Year 0) | G2: Step 7 (Year 1)
B3: Determine Your Site Preparation Costs - Equipment | G3: Determine Your Planting Year Costs - Equipment
B4: List each action you use to prepare your site for planting. Enter the number of hours per year for each action and the cost per hour. Lump the equipment cost with the operator labor cost. | G4: List each action you use in the establishment year to plant, water, weed or otherwise take care of your hazelnuts. Enter the number of hours per year for each action and the cost per hour. Lump the equipment cost with the equipment operator labor cost.
B7: Action | C7: Hours/yr | D7: Cost/hr | E7: Cost/Yr
B8: Tillage - tractor and implement | C8: 3 | D8: $10.00 | E8: =C8*D8 -> $30.00 | G8: Action | H8: Hours/yr | I8: Cost/hr | J8: Cost/Yr
B9: Herbicide burndown (whole field) - sprayer | C9: 1 | D9: $30.00 | E9: =C9*D9 -> $30.00 | G9: Tree planting (custom) - inclusive | H9: 16 | I9: $30.00 | J9: =H9*I9 -> $480.00
E10: =C10*D10 -> 0 | G10: Mulching (custom) - inclusive | H10: 6 | I10: $30.00 | J10: $180.00
G11: Drip irrigation install (custom) - labor only | H11: 6 | I11: $30.00 | J11: $180.00
B12: Labor | G12: Cover crop seeding - tractor and implement | H12: 3 | I12: $50.00 | J12: $150.00
B13: List each action requiring hand labor, management, or consultants. Note: labor for actions using equipment is included in the table above. | G13: Deer repellent - backpack sprayer | H13: 3 | I13: $20.00 | J13: $60.00
J14: 0
B15: Action | C15: Hours/yr | D15: Cost/hr | E15: Cost/Yr | J15: 0
B16: Project coordination/planning/consultant | C16: 20 | D16: 0 | E16: =C16*D16 -> 0
G17: Labor
B18: Step 7b | G18: List each action requiring hand labor, management, or consultants in the establishment year. Note: labor for actions using equipment is included in the table above.
B19: Determine Your Mulch and/or Herbicide Costs (Year 0 and 1)
B20: Enter the type of mulch, the amount per plant, and the cost per unit. Enter the herbicide name, the amount per unit, and cost per unit. Leave the yellow boxes blank if not using mulch and/or herbicides.
G21: Action | H21: Hours/yr | I21: Cost/hr | J21: Cost/yr
G22: Project coordination/planning/consultant | H22: 0 | I22: $15.00 | J22: =H22*I22 -> 0
B23: Item - Organic mulch | C23: Yds/plant | D23: Cost/yd | E23: Total Cost | G23: Deer repellent application | H23: 3 | I23: $15.00 | J23: $45.00
B24: wood chips | C24: 0.10 | D24: $5.00 | E24: =C24*'Steps 1-5'!C15*D24 -> $364.80 | J24: 0
J25: 0
B26: Item - Synthetic mulch | C26: Feet | D26: Cost/ft | E26: Total Cost | J26: 0
E27: =C27*D27 -> 0 | J27: 0
B29: Herbicide | C29: Unit | D29: Cost/Unit | E29: Total Cost
B30: Round-up before tillage | C30: 1 | D30: $18.00 | E30: =C30*D30 -> $18.00
B31: Poast for grass + pre-emergent | C31: 1 | D31: $80.00 | E31: =C31*D31 -> $80.00
B33: Fertilizer | C33: Units | D33: Cost/Unit | E33: Total Cost
B34: ESN-urea | C34: 80 | D34: $0.35 | E34: =D34*C34 -> $28.00
B35: Potassium sulfate | C35: 200 | D35: $0.20 | E35: =D35*C35 -> $40.00
B36: Triple super phosphate | C36: 100 | D36: $0.35 | E36: =C36*D36 -> $35.00

Sheet Step 8
B2: Step 8 (Years 2-4) | G2: Step 8b
B3: Determine Your Annual Pre-Production Costs - Equipment | G3: Determine Your Mulch, Fertilizer, and/or Herbicide Costs (Year 2-4)
B4: List each action you use to maintain your plants in the pre-production years. Enter the number of hours per year for each action and the cost per hour. Lump the equipment costs with the operator labor costs. | G4: Enter the type of mulch, the amount per plant, and the cost per unit. Enter the herbicide name, the amount per unit, and cost per unit. Leave the yellow boxes blank if not using mulch, fertilizer, and/or herbicides.
B7: Action | C7: Hours/yr | D7: Cost/hr | E7: Cost/Yr | G7: Item - Organic mulch | H7: Yds/plant | I7: Cost/yd | J7: Total Cost
B8: Mowing-riding mower | C8: 5 | D8: $20.00 | E8: =C8*D8 -> $100.00 | J8: =H8*'Steps 1-5'!C15*I8 -> 0
B9: In row weed control (herbicide) - backpack sprayer | C9: 3 | D9: $20.00 | E9: =C9*D9 -> $60.00
B10: In row weed control (weed whip) | C10: 3 | D10: $20.00 | E10: =C10*D10 -> $60.00 | G10: Herbicide | H10: Units | I10: Cost/Unit | J10: Total Cost
B11: Deer repellent - backpack sprayer | C11: 3 | D11: $20.00 | E11: =C11*D11 -> $60.00 | G11: glyphosate | H11: 1 | I11: $18.00 | J11: =H11*I11 -> $18.00
E12: =C12*D12 -> 0 | G12: Poast | H12: 1 | I12: $40.00 | J12: =H12*I12 -> $40.00
B14: Labor | G14: Fertilizer | H14: Units | I14: Cost/Unit | J14: Total Cost
B15: List each action requiring hand labor, management, or consultants. Note: labor for actions using equipment is included in the table above. | G15: ESN-urea | H15: 80 | I15: $0.35 | J15: =I15*H15 -> $28.00
J16: =H16*I16 -> 0
B17: Action | C17: Hours/yr | D17: Cost/hr | E17: Cost/Yr
B18: Hand fertilizing | C18: 3 | D18: $15.00 | E18: =C18*D18 -> $45.00 | G18: Step 8c
B19: Deer repellent application | C19: 3 | D19: $15.00 | E19: =C19*D19 -> $45.00 | G19: Determine Your Re-Plant Plant Costs
E20: =C20*D20 -> 0 | G20: Enter your percent mortality and the cost of each replacement plant.
E21: =C21*D21 -> 0
G22: Item | H22: Value
G23: Percent Replacement | H23: 3%
G24: Total Plants | H24: =H23*'Steps 1-5'!$C$15 -> 22
G25: Plant Cost | H25: $5.00

Sheet Step 9
B2: Step 9a (Years 5-8) | G2: Step 9b
B3: Determine Your Annual Early Production Costs - Equipment | G3: Determine Your Mulch, Fertilizer, and/or Herbicide Costs (Years 5-8)
B4: List each action you use to maintain your plants in the early-production years. Enter the number of hours per year for each action and the cost per hour. Lump the equipment costs with the operator labor costs. | G4: Enter the type of mulch, the amount per plant, and the cost per unit. Enter the herbicide name, the amount per unit, and cost per unit. Leave the yellow boxes blank if not using mulch, fertilizer, and/or herbicides.
B7: Action | C7: Hours/yr | D7: Cost/hr | E7: Cost/yr | G7: Item - Organic mulch | H7: Yds/plant | I7: Cost/yd | J7: Total Cost
B8: Mowing-riding mower | C8: 5 | D8: $20.00 | E8: =C8*D8 -> $100.00 | J8: =H8*'Steps 1-5'!C15*I8 -> 0
E9: =C9*D9 -> 0
E10: =C10*D10 -> 0 | G10: Herbicide | H10: Units | I10: Cost/Unit | J10: Total Cost
J11: =H11*I11 -> 0
B12: Labor | J12: =H12*I12 -> 0
B13: Action | C13: Hours/yr | D13: Cost/hr | E13: Cost/yr
E14: =C14*D14 -> 0 | G14: Fertilizer | H14: Units | I14: Cost/Unit | J14: Total Cost
B15: Hand fertilizing | C15: 3 | D15: $15.00 | E15: =C15*D15 -> $45.00 | G15: ESN-Urea | H15: 80 | I15: $0.35 | J15: =H15*I15 -> $28.00
B16: Renewal pruning | C16: 20 | D16: $15.00 | E16: =C16*D16 -> $300.00
E17: =C17*D17 -> 0

Sheet Step 10
B2: Note About Renovation
B3: Because available hazelnut plants are primarily seedling origin and genetically unique it is likely that by Year 8 after planting some plants will be inferior to others with less vigor or low yields. Some growers choose to remove the poorest plants and replace them with new plants. If you do not plan to renovate leave the yellow boxes blank.
B7: Step 10 (Year 8) | G7: Step 10a
B8: Determine Your Renovation Costs - Equipment | G8: Determine Your Renovation Plant Costs
B9: List each action you use to renovate your planting. Enter the number of hours per year for each action and the cost per hour. Lump the equipment costs with the operator labor costs. | G9: Enter the percent of plants you plan on replacing and the cost per plant
G11: Item | H11: Value
B12: Action | C12: Hours/yr | D12: Cost/hr | E12: Cost/yr | G12: Percent Replacement
E13: =C13*D13 -> 0 | G13: Total Plants | H13: =H12*'Steps 1-5'!C15 -> 0
E14: =C14*D14 -> 0 | G14: Plant Cost
E15: 0
E16: 0
E17: 0
E18: 0
E19: 0
B21: Labor
B22: List each action requiring hand labor, management, or consultants. Note: labor for actions using equipment is included in the table above.
B24: Action | C24: Hours/yr | D24: Cost/hr | E24: Cost/yr
E25: =C25*D25 -> 0
E26: 0
E27: 0
E28: 0
E29: 0

Sheet Step 11
B2: Step 11a (Years 9-15) | G2: Step 11b
B3: Determine Your Annual Full Production Costs - Equipment | G3: Determine Your Mulch, Fertilizer, and/or Herbicide Costs (Years 9-15)
B4: List each action you use to maintain your plants in the full-production years. Enter the number of hours per year for each action and the cost per hour. Lump the equipment costs with the operator labor costs. | G4: Enter the type of mulch, the amount per plant, and the cost per unit. Enter the herbicide name, the amount per unit, and cost per unit. Leave the yellow boxes blank if not using mulch, fertilizer, and/or herbicides.
B7: Action | C7: Hours/yr | D7: Cost/hr | E7: Cost/yr | G7: Item - Organic mulch | H7: Yds/plant | I7: Cost/yd | J7: Total Cost
B8: Mowing-riding mower | C8: 5 | D8: $20.00 | E8: =C8*D8 -> $100.00 | J8: =H8*'Steps 1-5'!C15*I8 -> 0
E9: =C9*D9 -> 0
E10: 0 | G10: Herbicide | H10: Units | I10: Cost/Unit | J10: Total Cost
E11: 0 | J11: =H11*I11 -> 0
J12: =H12*I12 -> 0
B13: Labor
B14: Action | C14: Hours/yr | D14: Cost/hr | E14: Cost/yr | G14: Fertilizer | H14: Units | I14: Cost/Unit | J14: Total Cost
B15: Hand fertilizing | C15: 5 | D15: $15.00 | E15: =C15*D15 -> $75.00 | G15: ESN-Urea | H15: 160 | I15: $0.35 | J15: =H15*I15 -> $56.00
B16: Renewal pruning | C16: 20 | D16: $15.00 | E16: $300.00 | J16: =H16*I16 -> 0
E17: 0
E18: 0

Sheet Step 12-13
B2: Step 12 Production Volumes and Revenue
B3: Determine Your Annual Harvest Production
B4: Enter the name of each market to which you sell your in-shell nuts and the price paid to you for each market. For each year, enter the average lbs of in-shell nuts harvested per shrub. Enter the % of the total harvest sold to each market.
C7: Market 1: | D7: AHC | F7: Price: | G7: $1.50 | H7: $/lb
C8: Market 2: | F8: Price: | H8: $/lb
C9: Market 3: | F9: Price: | H9: $/lb
B10: Year | C10: canopy coverage | D10: lbs kernel/ac | E10: lbs in-shell | F10: % market 1 | G10: % market 2 | H10: % market 3
B11: 3 | C11: 15% | D11: =((C11*43560)*0.02)/16 -> 8.17 | E11: =D11/0.4 -> 20 | F11: 100%
B12: 4 | C12: 25% | D12: =((C12*43560)*0.17)/16 -> 115.71 | E12: 289 | F12: 100%
B13: 5 | C13: 40% | D13: =((C13*43560)*0.28)/16 -> 304.92 | E13: 762 | F13: 100%
B14: 6 | C14: 45% | D14: =((C14*43560)*0.42)/16 -> 514.55 | E14: 1286 | F14: 100%
B15: 7 | C15: 50% | D15: =((C15*43560)*0.62)/16 -> 843.98 | E15: 2110 | F15: 100%
B16: 8 | C16: 50% | D16: =((C16*43560)*0.66)/16 -> 898.43 | E16: 2246 | F16: 100%
B17: 9 | C17: 50% | D17: =((C17*43560)*0.72)/16 -> 980.10 | E17: 2450 | F17: 100%
B18: 10 | C18: 50% | D18: =((C18*43560)*0.72)/16 -> 980.10 | E18: 2450 | F18: 100%
B19: 11 | C19: 50% | D19: =((C19*43560)*0.85)/16 -> 1157.06 | E19: 2893 | F19: 100%
B20: 12 | C20: 50% | D20: =((C20*43560)*0.72)/16 -> 980.10 | E20: 2450 | F20: 100%
B21: 13 | C21: 50% | D21: =((C21*43560)*0.85)/16 -> 1157.06 | E21: 2893 | F21: 100%
B22: 14 | C22: 50% | D22: =((C22*43560)*0.72)/16 -> 980.10 | E22: 2450 | F22: 100%
B23: 15 | C23: 50% | D23: =((C23*43560)*0.85)/16 -> 1157.06 | E23: 2893 | F23: 100%
B25: Step 13a Harvest Costs | G25: Step 13b (Drying and Husking Costs)
B26: Determine Your Annual Harvest Cost | G26: Determine Your Annual Drying and Husking Costs | O26: Hazelnut Husking Options (For Step 13a)
B27: For each year choose whether to harvest by hand or with a machine. If your own the machine use an hourly rate equal to the annual depreciation and operating costs for the machine. | G27: Enter the labor and equipment costs for husking and drying the hazelnuts
O28: Option | Q28: lbs/hr | R28: Custom Rate ($/lb) | S28: Equipment Ownership Cost*
O29: Hand husking
H30: Husker Flow-Through Rate: | I30: 400 | J30: lbs/hr | O30: Bucket husker
H31: Hrs of labor/hr of operation: | I31: 0.00 | J31: hrs | O31: Super Squirrel husker
C32: Hand Harvest Rate: | D32: 13 | E32: lbs/hr | H32: Labor Rate: | I32: $10.00 | J32: $/hr | O32: UW-Extension drum husker | Q32: 200 | R32: $0.03 | S32: =500/15 -> $33.33
C33: Hand Harvest Labor: | D33: $15.00 | E33: $/hr | H33: Husker Lease Rate: | I33: 0 | J33: $/hr | O33: Other
C34: Machine Harvest Rate: | D34: 1850 | E34: lbs/hr | O34: * The annual ownership and maintenance cost ammortized over 15 years. If the husking equipment is owned, use this annual cost and divide by the annual nut production to determine the annual cost per lb to enter in Step14a.
C35: Machine Custom Rate: | D35: $250.00 | E35: $/hr | G35: Year | H35: Lbs harvested | I35: Cost/Yr
G36: 3 | H36: =E11 -> 20 | I36: =((H36/$I$30)*$I$33)+(((H36/$I$30)*$I$31)*$I$32) -> 0
B37: Year | C37: Machine/Hand | D37: Cost/Yr | G37: 4 | H37: 289 | I37: 0
B38: 3 | C38: Hand | D38: =IF(C38="Hand",((E11/$D$32)*$D$33),((E11/$D$34)*$D$35)) -> $23.56 | G38: 5 | H38: 762 | I38: 0
B39: 4 | C39: Machine | D39: $39.09 | G39: 6 | H39: 1286 | I39: 0
B40: 5 | C40: Machine | D40: $103.01 | G40: 7 | H40: 2110 | I40: 0
B41: 6 | C41: Machine | D41: $173.84 | G41: 8 | H41: 2246 | I41: 0
B42: 7 | C42: Machine | D42: $285.13 | G42: 9 | H42: 2450 | I42: 0
B43: 8 | C43: Machine | D43: $303.52 | G43: 10 | H43: 2450 | I43: 0
B44: 9 | C44: Machine | D44: $331.11 | G44: 11 | H44: 2893 | I44: 0
B45: 10 | C45: Machine | D45: $331.11 | G45: 12 | H45: 2450 | I45: 0
B46: 11 | C46: Machine | D46: $390.90 | G46: 13 | H46: 2893 | I46: 0
B47: 12 | C47: Machine | D47: $331.11 | G47: 14 | H47: 2450 | I47: 0
B48: 13 | C48: Machine | D48: $390.90 | G48: 15 | H48: 2893 | I48: 0
B49: 14 | C49: Machine | D49: $331.11
B50: 15 | C50: Machine | D50: $390.90

Sheet budget
B1: Your Hazelnut Production Enterprise Budget (Year 0 -15)
C2: Year
C3: Establishment | E3: Pre-Production | H3: Early Production | L3: Full Production
B4: Revenue | C4: 0 | D4: 1 | E4: 2 | F4: 3 | G4: 4 | H4: 5 | I4: 6 | J4: 7 | K4: 8 | L4: 9 | M4: 10 | N4: 11 | O4: 12 | P4: 13 | Q4: 14 | R4: 15
B5: In-shell nut sales
B6: Market 1 | F6: ='Step 12-13'!G7*('Step 12-13'!F11*'Step 12-13'!E11) -> $31 | G6: ='Step 12-13'!G7*'Step 12-13'!F12*'Step 12-13'!E12 -> $434 | H6: ='Step 12-13'!G7*'Step 12-13'!F13*'Step 12-13'!E13 -> $1,143 | I6: ='Step 12-13'!G7*'Step 12-13'!F14*'Step 12-13'!E14 -> $1,930 | J6: ='Step 12-13'!G7*'Step 12-13'!F15*'Step 12-13'!E15 -> $3,165 | K6: ='Step 12-13'!G7*'Step 12-13'!F16*'Step 12-13'!E16 -> $3,369 | L6: ='Step 12-13'!G7*'Step 12-13'!F17*'Step 12-13'!E17 -> $3,675 | M6: ='Step 12-13'!G7*'Step 12-13'!F18*'Step 12-13'!E18 -> $3,675 | N6: ='Step 12-13'!G7*'Step 12-13'!F19*'Step 12-13'!E19 -> $4,339 | O6: ='Step 12-13'!G7*'Step 12-13'!F20*'Step 12-13'!E20 -> $3,675 | P6: ='Step 12-13'!G7*'Step 12-13'!F21*'Step 12-13'!E21 -> $4,339 | Q6: ='Step 12-13'!G7*'Step 12-13'!F22*'Step 12-13'!E22 -> $3,675 | R6: ='Step 12-13'!G7*'Step 12-13'!F23*'Step 12-13'!E23 -> $4,339
B7: Market 2 | F7: ='Step 12-13'!G8*'Step 12-13'!G11*'Step 12-13'!E11 -> 0 | G7: ='Step 12-13'!G8*'Step 12-13'!G12*'Step 12-13'!E12 -> 0 | H7: ='Step 12-13'!G8*'Step 12-13'!G13*'Step 12-13'!E13 -> 0 | I7: ='Step 12-13'!G8*'Step 12-13'!G14*'Step 12-13'!E14 -> 0 | J7: ='Step 12-13'!G8*'Step 12-13'!G15*'Step 12-13'!E15 -> 0 | K7: ='Step 12-13'!G8*'Step 12-13'!G16*'Step 12-13'!E16 -> 0 | L7: ='Step 12-13'!G8*'Step 12-13'!G17*'Step 12-13'!E17 -> 0 | M7: ='Step 12-13'!G8*'Step 12-13'!G18*'Step 12-13'!E18 -> 0 | N7: ='Step 12-13'!G8*'Step 12-13'!G19*'Step 12-13'!E19 -> 0 | O7: ='Step 12-13'!G8*'Step 12-13'!G20*'Step 12-13'!E20 -> 0 | P7: ='Step 12-13'!G8*'Step 12-13'!G21*'Step 12-13'!E21 -> 0 | Q7: ='Step 12-13'!G8*'Step 12-13'!G22*'Step 12-13'!E22 -> 0 | R7: ='Step 12-13'!G8*'Step 12-13'!G23*'Step 12-13'!E23 -> 0
B8: Market 3 | F8: ='Step 12-13'!G9*'Step 12-13'!H11*'Step 12-13'!E11 -> 0 | G8: ='Step 12-13'!G9*'Step 12-13'!H12*'Step 12-13'!E12 -> 0 | H8: ='Step 12-13'!G9*'Step 12-13'!H13*'Step 12-13'!E13 -> 0 | I8: ='Step 12-13'!G9*'Step 12-13'!H14*'Step 12-13'!E14 -> 0 | J8: ='Step 12-13'!G9*'Step 12-13'!H15*'Step 12-13'!E15 -> 0 | K8: ='Step 12-13'!G9*'Step 12-13'!H16*'Step 12-13'!E16 -> 0 | L8: ='Step 12-13'!G9*'Step 12-13'!H17*'Step 12-13'!E17 -> 0 | M8: ='Step 12-13'!G9*'Step 12-13'!H18*'Step 12-13'!E18 -> 0 | N8: ='Step 12-13'!G9*'Step 12-13'!H19*'Step 12-13'!E19 -> 0 | O8: ='Step 12-13'!G9*'Step 12-13'!H20*'Step 12-13'!E20 -> 0 | P8: ='Step 12-13'!G9*'Step 12-13'!H21*'Step 12-13'!E21 -> 0 | Q8: ='Step 12-13'!G9*'Step 12-13'!H22*'Step 12-13'!E22 -> 0 | R8: ='Step 12-13'!G9*'Step 12-13'!H23*'Step 12-13'!E23 -> 0
B10: Total Gross Revenue | C10: =SUM(C6:C8) -> 0 | D10: 0 | E10: 0 | F10: $31 | G10: $434 | H10: $1,143 | I10: $1,930 | J10: $3,165 | K10: $3,369 | L10: $3,675 | M10: $3,675 | N10: $4,339 | O10: $3,675 | P10: $4,339 | Q10: $3,675 | R10: $4,339
B12: Expenses
B13: Land Cost
B14: Owned | C14: =SUM('Steps 1-5'!C24:C26) -> 0 | D14: =C14 -> 0 | E14: =D14 -> 0 | F14: 0 | G14: 0 | H14: 0 | I14: 0 | J14: 0 | K14: 0 | L14: 0 | M14: 0 | N14: 0 | O14: 0 | P14: 0 | Q14: 0 | R14: 0
B15: Rented | C15: ='Steps 1-5'!C28 -> $100 | D15: =C15 -> $100 | E15: =D15 -> $100 | F15: $100 | G15: $100 | H15: $100 | I15: $100 | J15: $100 | K15: $100 | L15: $100 | M15: $100 | N15: $100 | O15: $100 | P15: $100 | Q15: $100 | R15: $100
B16: Supplies and Materials
B17: Plants | C17: 0 | D17: =SUM('Steps 1-5'!I6:I7) -> $2,554 | E17: ='Step 8'!H24*'Step 8'!H25 -> $109 | F17: 0 | G17: 0 | H17: 0 | I17: 0 | J17: 0 | K17: ='Step 10'!H13*'Step 10'!H14 -> 0 | L17: 0 | M17: 0 | N17: 0 | O17: 0 | P17: 0 | Q17: 0 | R17: 0
B18: Drip Irrigation | C18: 0 | D18: ='Steps 1-5'!I32 -> $894 | E18: 0 | F18: 0 | G18: 0 | H18: 0 | I18: 0 | J18: 0 | K18: 0 | L18: 0 | M18: 0 | N18: 0 | O18: 0 | P18: 0 | Q18: 0 | R18: 0
B19: Tree Tubes | C19: 0 | D19: ='Steps 1-5'!H16 -> 0 | E19: 0 | F19: 0 | G19: 0 | H19: 0 | I19: 0 | J19: 0 | K19: 0 | L19: 0 | M19: 0 | N19: 0 | O19: 0 | P19: 0 | Q19: 0 | R19: 0
B20: Fertilizer | C20: ='Step 6-7'!E34+'Step 6-7'!E35+'Step 6-7'!E36 -> $103 | D20: 0 | E20: ='Step 8'!J15+'Step 8'!J16 -> $28 | F20: ='Step 8'!J15+'Step 8'!J16 -> $28 | G20: ='Step 8'!J15+'Step 8'!J16 -> $28 | H20: ='Step 9'!J15+'Step 9'!J16 -> $28 | I20: ='Step 9'!J15+'Step 9'!J16 -> $28 | J20: ='Step 9'!J15+'Step 9'!J16 -> $28 | K20: ='Step 9'!J15+'Step 9'!J16 -> $28 | L20: ='Step 11'!$J$15+'Step 11'!$J$16 -> $56 | M20: ='Step 11'!$J$15+'Step 11'!$J$16 -> $56 | N20: ='Step 11'!$J$15+'Step 11'!$J$16 -> $56 | O20: ='Step 11'!$J$15+'Step 11'!$J$16 -> $56 | P20: ='Step 11'!$J$15+'Step 11'!$J$16 -> $56 | Q20: ='Step 11'!$J$15+'Step 11'!$J$16 -> $56 | R20: ='Step 11'!$J$15+'Step 11'!$J$16 -> $56
B21: Herbicide | C21: 0 | D21: =SUM('Step 6-7'!E30:E31) -> $98 | E21: ='Step 8'!J11+'Step 8'!J12 -> $58 | F21: =SUM('Step 8'!J11:J12) -> $58 | G21: ='Step 8'!J11+'Step 8'!J12 -> $58 | H21: ='Step 9'!J11+'Step 9'!J12 -> 0 | I21: ='Step 9'!J11+'Step 9'!J12 -> 0 | J21: ='Step 9'!J11+'Step 9'!J12 -> 0 | K21: ='Step 9'!J11+'Step 9'!J12 -> 0 | L21: ='Step 11'!$J$11+'Step 11'!$J$12 -> 0 | M21: ='Step 11'!$J$11+'Step 11'!$J$12 -> 0 | N21: ='Step 11'!$J$11+'Step 11'!$J$12 -> 0 | O21: ='Step 11'!$J$11+'Step 11'!$J$12 -> 0 | P21: ='Step 11'!$J$11+'Step 11'!$J$12 -> 0 | Q21: ='Step 11'!$J$11+'Step 11'!$J$12 -> 0 | R21: ='Step 11'!$J$11+'Step 11'!$J$12 -> 0
B22: Organic mulch | C22: 0 | D22: ='Step 6-7'!E24 -> $365 | E22: ='Step 8'!J8 -> 0 | F22: ='Step 9'!J8 -> 0 | G22: ='Step 9'!J8 -> 0 | H22: ='Step 9'!J8 -> 0 | I22: ='Step 9'!J8 -> 0 | J22: ='Step 9'!J8 -> 0 | K22: ='Step 9'!J8 -> 0 | L22: ='Step 11'!$J$8 -> 0 | M22: ='Step 11'!$J$8 -> 0 | N22: ='Step 11'!$J$8 -> 0 | O22: ='Step 11'!$J$8 -> 0 | P22: ='Step 11'!$J$8 -> 0 | Q22: ='Step 11'!$J$8 -> 0 | R22: ='Step 11'!$J$8 -> 0
B23: Synthetic mulch | D23: ='Step 6-7'!E27 -> 0
B24: Total Supplies and Materials | C24: =SUM(C17:C22) -> $103 | D24: =SUM(D17:D22) -> $3,910 | E24: $195 | F24: $86 | G24: $86 | H24: $28 | I24: $28 | J24: $28 | K24: $28 | L24: $56 | M24: $56 | N24: $56 | O24: $56 | P24: $56 | Q24: $56 | R24: $56
B26: Custom Equipment and Operator | C26: =SUM('Step 6-7'!E8:E10) -> $60 | D26: =SUM('Step 6-7'!J9:J15) -> $1,050 | E26: =SUM('Step 8'!E8:E12) -> $280 | F26: =E26 -> $280 | G26: =F26 -> $280 | H26: =SUM('Step 9'!E8:E10) -> $100 | I26: =H26 -> $100 | J26: =H26 -> $100 | K26: =SUM('Step 10'!E13:E19) -> 0 | L26: =SUM('Step 11'!E8:E11) -> $100 | M26: =L26 -> $100 | N26: =M26 -> $100 | O26: =N26 -> $100 | P26: $100 | Q26: $100 | R26: $100
B27: General Labor | C27: =SUM('Step 6-7'!E16) -> 0 | D27: =SUM('Step 6-7'!J22:J27) -> $45 | E27: =SUM('Step 8'!E18:E21) -> $90 | F27: =E27 -> $90 | G27: =F27 -> $90 | H27: =SUM('Step 9'!E14:E17) -> $345 | I27: =H27 -> $345 | J27: =H27 -> $345 | K27: =SUM('Step 10'!E25:E29) -> 0 | L27: =SUM('Step 11'!E15:E18) -> $375 | M27: =L27 -> $375 | N27: =M27 -> $375 | O27: $375 | P27: $375 | Q27: $375 | R27: $375
B28: Custom Harvest Cost | F28: ='Step 12-13'!D38 -> $24 | G28: ='Step 12-13'!D39 -> $39 | H28: ='Step 12-13'!D40 -> $103 | I28: ='Step 12-13'!D41 -> $174 | J28: ='Step 12-13'!D42 -> $285 | K28: ='Step 12-13'!D43 -> $304 | L28: ='Step 12-13'!D44 -> $331 | M28: ='Step 12-13'!D45 -> $331 | N28: ='Step 12-13'!D46 -> $391 | O28: ='Step 12-13'!D47 -> $331 | P28: ='Step 12-13'!D48 -> $391 | Q28: ='Step 12-13'!D49 -> $331 | R28: ='Step 12-13'!D50 -> $391
B29: Drying and Husking | F29: ='Step 12-13'!I36 -> 0 | G29: ='Step 12-13'!I37 -> 0 | H29: ='Step 12-13'!I38 -> 0 | I29: ='Step 12-13'!I39 -> 0 | J29: ='Step 12-13'!I40 -> 0 | K29: ='Step 12-13'!I41 -> 0 | L29: ='Step 12-13'!I43 -> 0 | M29: ='Step 12-13'!I44 -> 0 | N29: ='Step 12-13'!I44 -> 0 | O29: ='Step 12-13'!I45 -> 0 | P29: ='Step 12-13'!I46 -> 0 | Q29: ='Step 12-13'!I47 -> 0 | R29: ='Step 12-13'!I48 -> 0 | U29: =759/2893 -> 0.2623574144
B31: Total Expenses | C31: =C14+C15+C24+C26+C27+C28 -> $263 | D31: $5,105 | E31: $665 | F31: $580 | G31: $595 | H31: $676 | I31: $747 | J31: $858 | K31: $432 | L31: $962 | M31: $962 | N31: $1,022 | O31: $962 | P31: $1,022 | Q31: $962 | R31: $1,022
B33: Annual Cash Flow | C33: =C10-C31 -> $(263) | D33: $(5,105) | E33: $(665) | F33: $(549) | G33: $(161) | H33: $467 | I33: $1,183 | J33: $2,307 | K33: $2,938 | L33: $2,713 | M33: $2,713 | N33: $3,317 | O33: $2,713 | P33: $3,317 | Q33: $2,713 | R33: $3,317
B34: Cumulative Cash Flow | C34: =C33 -> $(263) | D34: =C34+D33 -> $(5,368) | E34: =D34+E33 -> $(6,034) | F34: $(6,583) | G34: $(6,744) | H34: $(6,276) | I34: $(5,094) | J34: $(2,787) | K34: $151 | L34: $2,864 | M34: $5,577 | N34: $8,894 | O34: $11,608 | P34: $14,925 | Q34: $17,638 | R34: $20,955

Sheet input tables
D2: Custom Hire/Rental Rates | F2: Labor
D3: Year 0 - Site Preparation | F3: Year 0 - Site Preparation
D4: Activity | F4: Activity
D5: Herbicide burndown (strips) - ATV sprayer | F5: Project coordination/planning/consultant
D6: Herbicide burndown (whole field) - sprayer
D7: Tillage - tractor and implement | F7: Year 1 - Planting Year
D8: Cover crop seeding - tractor and implement | F8: Project coordination/planning/consultant
F9: Planting
D10: Year 1 - Planting Year | F10: Applying mulch (organic or synthetic)
D11: Herbicide burndown (strips) - ATV sprayer | F11: Installing tree tubes
D12: Herbicide burndown (whole field) - sprayer | F12: Installing drip irrigation
D13: Tillage - tractor and implement | F13: Hand weeding
D14: Tree planting-tractor and planter | F14: Deer repellent application
D15: Tree planting-auger | F15: Years 2-4 - Pre-Production Maintenance
D16: Tree planting (custom) - inclusive | F16: Project coordination/planning/consultant
D17: Watering - tractor and tank | F17: Re-planting
D18: Cover crop seeding - tractor and implement | F18: Hand weeding
D19: Fertilizing-ATV | F19: Hand fertilizing
D20: Fertilizing-Tractor | F20: Applying mulch
D21: In row weed control (herbicide) - ATV sprayer | F21: Deer repellent application
D22: In row weed control (mulch application) - tractor | F22: Years 5-7 Early-Production Maintenance
D23: In row weed control (herbicide) - backpack sprayer | F23: Project coordination/planning/consultant
D24: Clean cultivation-tractor and implement | F24: Hand weeding
D25: Mowing-Tractor and implement | F25: Data collection - plant performance
D26: Mowing-riding mower | F26: Hand fertilizing
D27: Mulching (custom) - inclusive | F27: Renewal pruning
D28: Drip irrigation install (custom) - labor only | F28: Deer repellent application
D29: Deer repellent - backpack sprayer | F29: Year 8 Renovation
D30: Years 2-4 - Pre-Production Maintenance | F30: Project coordination/planning/consultant
D31: In row weed control (herbicide) - ATV sprayer | F31: Plant removal - hand labor
D32: In row weed control (herbicide) - backpack sprayer | F32: Re-planting - hand labor
D33: In row weed control (weed whip) | F33: Hand weeding
D34: Clean cultivation - tractor and implement | F34: Data collection - plant performance
D35: Mowing-tractor and implement | F35: Hand fertilizing
D36: Mowing-riding mower | F36: Renewal pruning
D37: Fertilizing-ATV
D38: Fertilizing-Tractor | F38: Years 9-15
D39: Watering - tractor and tank | F39: Project coordination/planning/consultant
D40: Deer repellent - backpack sprayer | F40: Hand weeding
D41: Years 5-7 Early Production Maintenance | F41: Data collection - plant performance
D42: In row weed control (herbicide) - ATV sprayer | F42: Hand fertilizing
D43: In row weed control (herbicide) - backpack sprayer | F43: Renewal pruning
D44: Mowing-tractor and implement
D45: Mowing-riding mower
D46: Fertilizing-ATV | F46: Step 13 Harvest Cost
D47: Fertilizing-Tractor | F47: Machine
F48: Hand
D49: Year 8 Renovation Year
D50: Plant removal - backpack sprayer
D51: Plant removal - backhoe
D52: In row weed control (herbicide) - ATV sprayer
D53: In row weed control (herbicide) - backpack sprayer
D54: Mowing-Tractor and implement
D55: Mowing-riding mower
D56: Fertilizing-ATV
D57: Fertilizing-Tractor
D58: Watering - tractor and tank
D60: Years 9-15
D61: In row weed control (herbicide) - ATV sprayer
D62: In row weed control (herbicide) - backpack sprayer
D63: Mowing-Tractor and implement
D64: Mowing-riding mower
D65: Fertilizing-ATV
D66: Fertilizing-Tractor

Sheet graph
A2: Year | B2: Cumulative
A3: 0 | B3: =budget!C33 -> $(263)
A4: 1 | B4: =B3+budget!D33 -> $(5,368)
A5: 2 | B5: =B4+budget!E33 -> $(6,034)
A6: 3 | B6: =B5+budget!F33 -> $(6,583)
A7: 4 | B7: =B6+budget!G33 -> $(6,744)
A8: 5 | B8: =B7+budget!H33 -> $(6,276)
A9: 6 | B9: =B8+budget!I33 -> $(5,094)
A10: 7 | B10: =B9+budget!J33 -> $(2,787)
A11: 8 | B11: =B10+budget!K33 -> $151
A12: 9 | B12: =B11+budget!L33 -> $2,864
A13: 10 | B13: =B12+budget!M33 -> $5,577
A14: 11 | B14: =B13+budget!N33 -> $8,894
A15: 12 | B15: =B14+budget!O33 -> $11,608
A16: 13 | B16: =B15+budget!P33 -> $14,925
A17: 14 | B17: =B16+budget!Q33 -> $17,638
A18: 15 | B18: =B17+budget!R33 -> $20,955
